[Event "-chT Youth Countries 2019"]
[Site "Wuerzburg"]
[Date "2019.10.04"]
[Round "4.5"]
[White "Stockmann, Till"]
[Black "Arnhold, Steffi"]
[Result "1/2-1/2"]
[ECO "B36"]
[WhiteElo "1884"]
[BlackElo "2042"]
[Annotator "NA"]
[PlyCount "85"]
[EventDate "2019.10.02"]
[EventType "team-tourn"]
[EventRounds "7"]
[EventCountry "GER"]
[SourceTitle "playchess.com"]
[Source "ChessBase"]
[SourceQuality "1"]
[WhiteTeam "Sachsen-Anhalt"]
[BlackTeam "Sachsen"]
[TimeControl "40/5400+30:1800+30"]

1. e4 {[%emt 0:00:00]} c5 {[%emt 0:00:00]} 2. Nf3 {[%emt 0:00:00]} Nc6 {[%emt 0:00:00]} 3. d4 {[%emt 0:00:00]} cxd4 {[%emt 0:00:00]} 4. Nxd4 {[%emt 0:00:00]} g6 {[%emt 0:00:09]} 5. c4 {[%emt 0:00:33]} Nf6 {[%emt 0:00:19]} 6. Nc3 {[%emt 0:01:07]} d6 {[%emt 0:00:51]} 7. Be2 {[%emt 0:01:59]} Nxd4 {[%emt 0:00:30]} 8. Qxd4 {[%emt 0:00:08]} Bg7 {[%emt 0:00:13]} 9. Be3 {[%emt 0:03:05]} O-O {[%emt 0:00:27]} 10. Qd2 {[%emt 0:00:55]} Be6 {[%emt 0:01:44]} 11. O-O {[%emt 0:02:37]} Qa5 {[%emt 0:03:34]} 12. Rac1 {[%emt 0:04:34]} Rfc8 {[%emt 0:01:34]} 13. b3 {[%emt 0:01:42]} a6 {[%emt 0:07:40]} 14. a3 {[%emt 0:12:29]} Qd8 {[%emt 0:17:58]} 15. f3 {[%emt 0:03:01]} Rab8 {[%emt 0:10:02]} 16. a4 {[%emt 0:05:51]} Qa5 {[%emt 0:12:15]} 17. Rc2 {[%emt 0:05:47]} Nd7 {[%emt 0:04:13]} 18. Rb1 {[%emt 0:01:41]} b5 {[%emt 0:09:06]} 19. axb5 {[%emt 0:14:32]} Bxc3 {[%emt 0:05:34]} 20. Rxc3 {[%emt 0:00:47]} axb5 {[%emt 0:01:18]} 21. b4 {[%emt 0:01:57]} Qc7 {[%emt 0:04:22]} 22. c5 {[%emt 0:03:31]} dxc5 {[%emt 0:02:28]} 23. bxc5 {[%emt 0:00:16]} b4 {[%emt 0:00:36]} 24. Rcc1 {[%emt 0:00:29]} b3 {[%emt 0:01:13]} 25. Bf4 {[%emt 0:05:08]} Ne5 {[%emt 0:02:31]} 26. Qc3 {[%emt 0:00:43]} f6 {[%emt 0:00:06]} 27. Bg3 {[%emt 0:01:26]} Bf7 {[%emt 0:03:39]} 28. Bd1 {[%emt 0:02:08]} Rb5 {[%emt 0:01:34]} 29. Bf2 {[%emt 0:04:44]} b2 {[%emt 0:05:11]} 30. Rc2 {[%emt 0:00:26]} Rb3 {[%emt 0:00:15]} 31. Qd2 {[%emt 0:02:48]} Rd8 {[%emt 0:00:45]} 32. Qe2 {[%emt 0:00:55]} Nd3 {[%emt 0:00:51]} 33. Rd2 {[%emt 0:00:35]} Rc3 {[%emt 0:00:22]} 34. Rbxb2 {[%emt 0:03:05]} Nxb2 {[%emt 0:00:14]} 35. Rxb2 {[%emt 0:00:07]} Rc1 {[%emt 0:01:15]} 36. Rd2 {[%emt 0:00:16]} Bb3 {[%emt 0:00:10]} 37. Bd4 {[%emt 0:01:01]} Rxd1+ {[%emt 0:00:36]} 38. Rxd1 {[%emt 0:00:18]} Bxd1 {[%emt 0:00:06]} 39. Qxd1 {[%emt 0:00:25]} Kg7 {[%emt 0:00:39]} 40. Qa4 {[%emt 0:01:35]} Qd7 {[%emt 0:04:23]} 41. Qxd7 {[%emt 0:30:55]} Rxd7 {[%emt 0:30:04]} 42. Be3 {[%emt 0:00:52] normal} Kf7 {[%emt 0:01:19]} 43. Kf2 {[%emt 0:01:54] normal} 1/2-1/2

[Event "-chT Youth Countries 2019"]
[Site "Wuerzburg"]
[Date "2019.10.04"]
[Round "4.5"]
[White "Zhou, Lepu Coco"]
[Black "Khamenya, Vitalia"]
[Result "1-0"]
[ECO "C78"]
[WhiteElo "1739"]
[BlackElo "1908"]
[Annotator "NA"]
[PlyCount "110"]
[EventDate "2019.10.02"]
[EventType "team-tourn"]
[EventRounds "7"]
[EventCountry "GER"]
[SourceTitle "playchess.com"]
[Source "ChessBase"]
[SourceQuality "1"]
[WhiteTeam "Berlin"]
[BlackTeam "Bayern 2"]
[TimeControl "40/5400+30:1800+30"]

1. e4 {[%emt 0:00:00]} e5 {[%emt 0:00:00]} 2. Nf3 {[%emt 0:00:00]} Nc6 {[%emt 0:00:00]} 3. Bb5 {[%emt 0:00:00]} a6 {[%emt 0:00:00]} 4. Ba4 {[%emt 0:00:00]} Nf6 {[%emt 0:00:04]} 5. O-O {[%emt 0:00:14]} b5 {[%emt 0:00:04]} 6. Bb3 {[%emt 0:00:07]} Bc5 {[%emt 0:00:05]} 7. c3 {[%emt 0:01:22]} d6 {[%emt 0:00:31]} 8. d4 {[%emt 0:01:06]} Bb6 {[%emt 0:00:13]} 9. h3 {[%emt 0:01:07]} h6 {[%emt 0:00:38]} 10. dxe5 {[%emt 0:02:22]} Nxe5 {[%emt 0:00:40]} 11. Nxe5 {[%emt 0:00:13]} dxe5 {[%emt 0:00:07]} 12. Qxd8+ {[%emt 0:00:09]} Kxd8 {[%emt 0:00:01]} 13. Bxf7 {[%emt 0:01:14]} Rf8 {[%emt 0:00:04]} 14. Bg6 {[%emt 0:00:32]} Bb7 {[%emt 0:01:53]} 15. Re1 {[%emt 0:04:10]} Nd7 {[%emt 0:09:06]} 16. Be3 {[%emt 0:00:41]} Nc5 {[%emt 0:03:19]} 17. Bf5 {[%emt 0:04:03]} Ke7 {[%emt 0:13:51]} 18. b4 {[%emt 0:04:37]} Nd3 {[%emt 0:05:32]} 19. Rd1 {[%emt 0:02:47]} Bxe3 {[%emt 0:00:47]} 20. fxe3 {[%emt 0:05:38]} Rad8 {[%emt 0:00:36]} 21. Rd2 {[%emt 0:03:45]} c5 {[%emt 0:01:49]} 22. a4 {[%emt 0:04:04]} bxa4 {[%emt 0:18:36]} 23. Rxa4 {[%emt 0:00:25]} cxb4 {[%emt 0:00:31]} 24. cxb4 {[%emt 0:00:29]} Rf6 {[%emt 0:00:35]} 25. Rc2 {[%emt 0:02:33]} Rb6 {[%emt 0:02:22]} 26. Rc7+ {[%emt 0:02:10]} Kf6 {[%emt 0:02:12]} 27. Nd2 {[%emt 0:03:55]} Nb2 {[%emt 0:07:25]} 28. Nc4 {[%emt 0:01:21]} Nxc4 {[%emt 0:00:16]} 29. Rxc4 {[%emt 0:00:10]} Bc6 {[%emt 0:00:29]} 30. Ra5 {[%emt 0:00:54]} Bb5 {[%emt 0:00:59]} 31. Rc7 {[%emt 0:01:45]} g6 {[%emt 0:07:03]} 32. Bc8 {[%emt 0:02:07]} Bd3 {[%emt 0:11:44]} 33. Bb7 {[%emt 0:01:46]} Rb8 {[%emt 0:06:39]} 34. Bd5 {[%emt 0:01:23]} Rxb4 {[%emt 0:03:05]} 35. Rf7+ {[%emt 0:00:17]} Kg5 {[%emt 0:00:52]} 36. Bc4 {[%emt 0:08:06]} Bxe4 {[%emt 0:02:59]} 37. Rxe5+ {[%emt 0:00:09]} Bf5 {[%emt 0:00:09]} 38. Bxa6 {[%emt 0:00:12]} Re4 {[%emt 0:00:58]} 39. Rxe4 {[%emt 0:00:24]} Bxe4 {[%emt 0:00:00]} 40. h4+ {[%emt 0:00:06]} Kh5 {[%emt 0:02:30]} 41. Be2+ {[%emt 0:30:09]} Kxh4 {[%emt 0:30:04]} 42. Rf4+ {[%emt 0:00:12]} Kg5 {[%emt 0:00:31]} 43. Rxe4 {[%emt 0:00:10]} h5 {[%emt 0:00:17]} 44. Rf4 {[%emt 0:00:17]} Rb2 {[%emt 0:00:25]} 45. Kf2 {[%emt 0:00:54]} Rc2 {[%emt 0:00:38]} 46. Kf3 {[%emt 0:01:02]} h4 {[%emt 0:01:02]} 47. Rg4+ {[%emt 0:00:45]} Kh5 {[%emt 0:00:23]} 48. Rxg6 {[%emt 0:03:27]} Rxe2 {[%emt 0:00:00]} 49. Kxe2 {[%emt 0:00:00]} Kxg6 {[%emt 0:00:00]} 50. Kf3 {[%emt 0:00:00]} Kf5 {[%emt 0:00:00]} 51. e4+ {[%emt 0:00:00]} Ke5 {[%emt 0:00:00]} 52. Kg4 {[%emt 0:00:00]} Kxe4 {[%emt 0:00:00]} 53. Kxh4 {[%emt 0:00:00]} Kf5 {[%emt 0:00:00]} 54. Kh5 {[%emt 0:00:00]} Kf6 {[%emt 0:00:00]} 55. g4 {[%emt 0:00:00]} Ke6 {normal} 1-0

[Event "-chT Youth Countries 2019"]
[Site "Wuerzburg"]
[Date "2019.10.04"]
[Round "4.5"]
[White "Hänselmann, Hendrik"]
[Black "Lederer, Leia"]
[Result "1-0"]
[ECO "B33"]
[WhiteElo "1732"]
[BlackElo "1750"]
[Annotator "NA"]
[PlyCount "67"]
[EventDate "2019.10.02"]
[EventType "team-tourn"]
[EventRounds "7"]
[EventCountry "GER"]
[SourceTitle "playchess.com"]
[Source "ChessBase"]
[SourceQuality "1"]
[WhiteTeam "Baden 1"]
[BlackTeam "Team Süd"]
[TimeControl "40/5400+30:1800+30"]

1. e4 {[%emt 0:00:00]} c5 {[%emt 0:00:43]} 2. Nf3 {[%emt 0:00:00]} Nc6 {[%emt 0:00:06]} 3. d4 {[%emt 0:00:00]} cxd4 {[%emt 0:00:03]} 4. Nxd4 {[%emt 0:00:00]} Nf6 {[%emt 0:00:07]} 5. Nc3 {[%emt 0:00:00]} e5 {[%emt 0:00:11]} 6. Ndb5 {[%emt 0:00:04]} d6 {[%emt 0:00:12]} 7. Bg5 {[%emt 0:00:10]} a6 {[%emt 0:00:37]} 8. Na3 {[%emt 0:00:12]} b5 {[%emt 0:00:07]} 9. Nd5 {[%emt 0:00:11]} Be7 {[%emt 0:00:05]} 10. Bxf6 {[%emt 0:00:06]} Bxf6 {[%emt 0:00:06]} 11. c4 {[%emt 0:00:30]} b4 {[%emt 0:00:23]} 12. Nc2 {[%emt 0:00:10]} a5 {[%emt 0:00:35]} 13. Be2 {[%emt 0:00:29]} Bg5 {[%emt 0:03:54]} 14. O-O {[%emt 0:00:21]} O-O {[%emt 0:03:49]} 15. Qd3 {[%emt 0:03:28]} Be6 {[%emt 0:01:31]} 16. Rfd1 {[%emt 0:02:57]} Qb8 {[%emt 0:02:11]} 17. Bf3 {[%emt 0:08:35]} Qb7 {[%emt 0:03:34]} 18. b3 {[%emt 0:06:58]} Rad8 {[%emt 0:06:03]} 19. a3 {[%emt 0:17:37]} bxa3 {[%emt 0:15:01]} 20. Rxa3 {[%emt 0:03:54]} Rd7 {[%emt 0:14:10]} 21. Rda1 {[%emt 0:04:30]} Rb8 {[%emt 0:10:40]} 22. Nce3 {[%emt 0:12:00]} Nd4 {[%emt 0:09:43]} 23. Nf5 {[%emt 0:01:23]} Nxf3+ {[%emt 0:07:11]} 24. Qxf3 {[%emt 0:01:07]} Bxd5 {[%emt 0:00:22]} 25. exd5 {[%emt 0:02:48]} Bd2 {[%emt 0:04:29]} 26. Ng3 {[%emt 0:06:54]} Qb6 {[%emt 0:05:53]} 27. Ne4 {[%emt 0:03:58]} Bb4 {[%emt 0:01:33]} 28. Ra4 {[%emt 0:02:57]} Re7 {[%emt 0:02:32]} 29. Qf5 {[%emt 0:04:57]} h6 {[%emt 0:02:24]} 30. Rd1 {[%emt 0:04:16]} Rbe8 {[%emt 0:02:14]} 31. Rd3 {[%emt 0:01:19]} Rf8 {[%emt 0:01:05]} 32. Rg3 {[%emt 0:00:33]} Qd4 {[%emt 0:00:24]} 33. Nf6+ {[%emt 0:00:09]} Kh8 {[%emt 0:00:10]} 34. Qh7# {[%emt 0:00:05] normal} 1-0

[Event "-chT Youth Countries 2019"]
[Site "Wuerzburg"]
[Date "2019.10.04"]
[Round "4.5"]
[White "Roste, Hugo"]
[Black "Kobald, Jacqueline"]
[Result "0-1"]
[ECO "E81"]
[WhiteElo "1339"]
[BlackElo "1884"]
[Annotator "NA"]
[PlyCount "92"]
[EventDate "2019.10.02"]
[EventType "team-tourn"]
[EventRounds "7"]
[EventCountry "GER"]
[SourceTitle "playchess.com"]
[Source "ChessBase"]
[SourceQuality "1"]
[WhiteTeam "Mecklenburg-Vorpommern"]
[BlackTeam "Württemberg"]
[TimeControl "40/5400+30:1800+30"]

1. d4 {[%emt 0:00:00]} Nf6 {[%emt 0:00:00]} 2. c4 {[%emt 0:00:00]} g6 {[%emt 0:00:00]} 3. Nc3 {[%emt 0:00:00]} Bg7 {[%emt 0:00:03]} 4. e4 {[%emt 0:00:20]} d6 {[%emt 0:00:12]} 5. f3 {[%emt 0:00:24]} O-O {[%emt 0:00:27]} 6. Be3 {[%emt 0:00:28]} c5 {[%emt 0:01:10]} 7. d5 {[%emt 0:00:29]} e6 {[%emt 0:01:18]} 8. Qd2 {[%emt 0:01:40]} exd5 {[%emt 0:01:02]} 9. cxd5 {[%emt 0:01:28]} a6 {[%emt 0:01:09]} 10. a4 {[%emt 0:02:05]} Nbd7 {[%emt 0:03:21]} 11. Bd3 {[%emt 0:04:33]} Ne5 {[%emt 0:04:19]} 12. Nge2 {[%emt 0:04:09]} Bd7 {[%emt 0:04:24]} 13. b3 {[%emt 0:01:30]} Qc7 {[%emt 0:06:12]} 14. O-O {[%emt 0:03:38]} Rab8 {[%emt 0:14:12]} 15. a5 {[%emt 0:02:24]} Rfc8 {[%emt 0:02:25]} 16. Bf4 {[%emt 0:02:16]} Nh5 {[%emt 0:08:04]} 17. Bxe5 {[%emt 0:02:27]} Bxe5 {[%emt 0:08:53]} 18. Ra2 {[%emt 0:06:39]} Rf8 {[%emt 0:05:45]} 19. Na4 {[%emt 0:03:04]} Bxa4 {[%emt 0:00:52]} 20. Rxa4 {[%emt 0:00:14]} Bg7 {[%emt 0:07:32]} 21. Ra2 {[%emt 0:07:30]} Qe7 {[%emt 0:09:04]} 22. b4 {[%emt 0:03:39]} Rfc8 {[%emt 0:05:00]} 23. bxc5 {[%emt 0:01:01]} Rxc5 {[%emt 0:00:50]} 24. Rc1 {[%emt 0:03:58]} Rbc8 {[%emt 0:00:31]} 25. Rac2 {[%emt 0:01:04]} Rxc2 {[%emt 0:01:15]} 26. Rxc2 {[%emt 0:00:10]} Rxc2 {[%emt 0:04:22]} 27. Qxc2 {[%emt 0:00:07]} Qd8 {[%emt 0:00:10]} 28. Qd2 {[%emt 0:01:43]} Qc7 {[%emt 0:00:21]} 29. Qb4 {[%emt 0:01:09]} Bf6 {[%emt 0:02:26]} 30. Kf1 {[%emt 0:04:49]} Bd8 {[%emt 0:01:54]} 31. Qb6 {[%emt 0:00:59]} Qxb6 {[%emt 0:02:04]} 32. axb6 {[%emt 0:00:07]} Bxb6 {[%emt 0:00:03]} 33. Ke1 {[%emt 0:00:30]} Ba5+ {[%emt 0:01:51]} 34. Kd1 {[%emt 0:00:10]} Kf8 {[%emt 0:00:19]} 35. Kc2 {[%emt 0:00:31]} Ke7 {[%emt 0:00:47]} 36. Kb3 {[%emt 0:00:59]} Kd7 {[%emt 0:00:47]} 37. Kc4 {[%emt 0:02:49]} Kc7 {[%emt 0:01:27]} 38. f4 {[%emt 0:01:53]} Nf6 {[%emt 0:02:48]} 39. h3 {[%emt 0:01:06]} h5 {[%emt 0:00:56]} 40. Nd4 {[%emt 0:02:41]} Nd7 {[%emt 0:01:08]} 41. Nf3 {[%emt 0:32:53]} b5+ {[%emt 0:03:56]} 42. Kd4 {[%emt 0:00:00]} Bb6+ {[%emt 0:02:18]} 43. Kc3 {[%emt 0:00:00]} Be3 {[%emt 0:02:42]} 44. f5 {[%emt 0:00:00]} gxf5 {[%emt 0:01:51]} 45. exf5 {[%emt 0:00:00]} Nf6 {[%emt 0:00:47]} 46. Nd4 {[%emt 0:00:00]} Nxd5+ {[%emt 0:00:28] normal} 0-1

[Event "-chT Youth Countries 2019"]
[Site "Wuerzburg"]
[Date "2019.10.04"]
[Round "4.6"]
[White "Yaghi, Rita"]
[Black "Rempe, Jonas"]
[Result "1/2-1/2"]
[ECO "C55"]
[WhiteElo "1973"]
[BlackElo "1816"]
[Annotator "NA"]
[PlyCount "61"]
[EventDate "2019.10.02"]
[EventType "team-tourn"]
[EventRounds "7"]
[EventCountry "GER"]
[SourceTitle "playchess.com"]
[Source "ChessBase"]
[SourceQuality "1"]
[WhiteTeam "Hessen"]
[BlackTeam "Schleswig-Holstein"]
[TimeControl "40/5400+30:1800+30"]

1. e4 {[%emt 0:00:00]} e5 {[%emt 0:00:00]} 2. Nf3 {[%emt 0:00:14]} Nc6 {[%emt 0:00:00]} 3. Bc4 {[%emt 0:00:09]} Nf6 {[%emt 0:00:00]} 4. d3 {[%emt 0:00:15]} Be7 {[%emt 0:00:00]} 5. O-O {[%emt 0:00:30]} O-O {[%emt 0:00:05]} 6. Re1 {[%emt 0:00:15]} d6 {[%emt 0:00:06]} 7. a4 {[%emt 0:00:16]} Na5 {[%emt 0:09:15]} 8. Ba2 {[%emt 0:00:16]} c5 {[%emt 0:00:07]} 9. c3 {[%emt 0:01:58]} Nc6 {[%emt 0:00:46]} 10. Nbd2 {[%emt 0:01:24]} Be6 {[%emt 0:01:12]} 11. Nf1 {[%emt 0:01:51]} Qc7 {[%emt 0:03:55]} 12. Ne3 {[%emt 0:05:07]} Bxa2 {[%emt 0:05:39]} 13. Rxa2 {[%emt 0:00:15]} Rad8 {[%emt 0:00:04]} 14. Nf5 {[%emt 0:06:36]} d5 {[%emt 0:03:20]} 15. Qe2 {[%emt 0:03:43]} c4 {[%emt 0:06:49]} 16. dxc4 {[%emt 0:07:45]} dxe4 {[%emt 0:10:28]} 17. Nxe7+ {[%emt 0:06:54]} Qxe7 {[%emt 0:09:44]} 18. Nd2 {[%emt 0:00:52]} Qd6 {[%emt 0:00:33]} 19. Nxe4 {[%emt 0:03:33]} Nxe4 {[%emt 0:00:15]} 20. Qxe4 {[%emt 0:00:05]} f5 {[%emt 0:00:19]} 21. Qe2 {[%emt 0:00:28]} e4 {[%emt 0:02:11]} 22. b4 {[%emt 0:09:01]} Qf6 {[%emt 0:02:35]} 23. Rc2 {[%emt 0:07:41]} Ne5 {[%emt 0:01:47]} 24. Be3 {[%emt 0:18:05]} Qg6 {[%emt 0:07:07]} 25. Bxa7 {[%emt 0:15:19]} Nf3+ {[%emt 0:02:20]} 26. Kh1 {[%emt 0:00:44]} Nxe1 {[%emt 0:00:55]} 27. Qxe1 {[%emt 0:00:02]} Qa6 {[%emt 0:01:56]} 28. Bc5 {[%emt 0:02:41]} Qxa4 {[%emt 0:01:28]} 29. Rc1 {[%emt 0:01:27]} Rf7 {[%emt 0:00:49]} 30. h3 {[%emt 0:00:21]} Rfd7 {[%emt 0:00:41]} 31. Bd4 {[%emt 0:00:09] normal} 1/2-1/2

[Event "-chT Youth Countries 2019"]
[Site "Wuerzburg"]
[Date "2019.10.04"]
[Round "4.6"]
[White "Browning, Rebecca"]
[Black "Brunner, Sophia"]
[Result "1-0"]
[ECO "C42"]
[WhiteElo "1932"]
[BlackElo "1935"]
[Annotator "NA"]
[PlyCount "93"]
[EventDate "2019.10.02"]
[EventType "team-tourn"]
[EventRounds "7"]
[EventCountry "GER"]
[SourceTitle "playchess.com"]
[Source "ChessBase"]
[SourceQuality "1"]
[WhiteTeam "Nordrhein-Westfalen"]
[BlackTeam "Niedersachsen"]
[TimeControl "40/5400+30:1800+30"]

1. e4 {[%emt 0:00:00]} e5 {[%emt 0:00:00]} 2. Nf3 {[%emt 0:00:00]} Nf6 {[%emt 0:00:00]} 3. Nc3 {[%emt 0:00:06]} d6 {[%emt 0:00:00]} 4. h3 {[%emt 0:01:29]} Be7 {[%emt 0:00:49]} 5. Bc4 {[%emt 0:01:19]} Nbd7 {[%emt 0:04:59]} 6. O-O {[%emt 0:22:28]} O-O {[%emt 0:00:19]} 7. Bb3 {[%emt 0:01:31]} Nc5 {[%emt 0:15:45]} 8. Re1 {[%emt 0:01:52]} Nxb3 {[%emt 0:00:36]} 9. axb3 {[%emt 0:00:06]} c6 {[%emt 0:00:12]} 10. d4 {[%emt 0:01:34]} Qc7 {[%emt 0:05:08]} 11. Be3 {[%emt 0:03:42]} a6 {[%emt 0:06:31]} 12. Qe2 {[%emt 0:06:23]} b5 {[%emt 0:06:42]} 13. Red1 {[%emt 0:12:42]} Bb7 {[%emt 0:04:17]} 14. d5 {[%emt 0:09:39]} cxd5 {[%emt 0:20:03]} 15. Nxd5 {[%emt 0:00:19]} Nxd5 {[%emt 0:00:21]} 16. exd5 {[%emt 0:00:07]} f5 {[%emt 0:02:30]} 17. Bg5 {[%emt 0:05:54]} h6 {[%emt 0:09:26]} 18. Bxe7 {[%emt 0:00:46]} Qxe7 {[%emt 0:00:05]} 19. c4 {[%emt 0:00:41]} bxc4 {[%emt 0:03:32]} 20. bxc4 {[%emt 0:00:14]} Qc7 {[%emt 0:04:48]} 21. b3 {[%emt 0:02:59]} g5 {[%emt 0:03:51]} 22. Rac1 {[%emt 0:03:56]} a5 {[%emt 0:03:41]} 23. c5 {[%emt 0:02:44]} dxc5 {[%emt 0:05:54]} 24. Qxe5 {[%emt 0:01:35]} Qxe5 {[%emt 0:00:42]} 25. Nxe5 {[%emt 0:00:06]} Rfe8 {[%emt 0:00:50]} 26. Nc6 {[%emt 0:01:45]} Bxc6 {[%emt 0:01:08]} 27. dxc6 {[%emt 0:00:06]} Re5 {[%emt 0:00:39]} 28. c7 {[%emt 0:00:39]} Rc8 {[%emt 0:00:29]} 29. Rd8+ {[%emt 0:00:06]} Re8 {[%emt 0:00:03]} 30. Rxe8+ {[%emt 0:00:47]} Rxe8 {[%emt 0:00:01]} 31. Rxc5 {[%emt 0:00:07]} Rc8 {[%emt 0:00:02]} 32. Rxa5 {[%emt 0:02:17]} Rxc7 {[%emt 0:00:04]} 33. Rxf5 {[%emt 0:00:03]} Rb7 {[%emt 0:00:39]} 34. Rf3 {[%emt 0:00:09]} Kg7 {[%emt 0:00:30]} 35. Kf1 {[%emt 0:00:58]} h5 {[%emt 0:00:50]} 36. Ke2 {[%emt 0:00:24]} Kg6 {[%emt 0:00:22]} 37. Kd2 {[%emt 0:00:23]} g4 {[%emt 0:00:23]} 38. hxg4 {[%emt 0:00:48]} hxg4 {[%emt 0:00:05]} 39. Rg3 {[%emt 0:01:00]} Kf5 {[%emt 0:00:04]} 40. f3 {[%emt 0:01:02]} gxf3 {[%emt 0:00:36]} 41. Rxf3+ {[%emt 0:30:22]} Ke4 {[%emt 0:30:34]} 42. Re3+ {[%emt 0:01:22]} Kf4 {[%emt 0:01:10]} 43. g3+ {[%emt 0:00:12]} Kf5 {[%emt 0:00:18]} 44. Kc3 {[%emt 0:00:25]} Kg5 {[%emt 0:00:42]} 45. b4 {[%emt 0:00:22]} Kf5 {[%emt 0:00:24]} 46. Kc4 {[%emt 0:00:09]} Rg7 {[%emt 0:00:13]} 47. b5 {[%emt 0:00:26] normal} 1-0

[Event "-chT Youth Countries 2019"]
[Site "Wuerzburg"]
[Date "2019.10.04"]
[Round "4.6"]
[White "Metzdorf, Matteo"]
[Black "Costa, Leonardo"]
[Result "0-1"]
[ECO "C78"]
[WhiteElo "1862"]
[BlackElo "1959"]
[Annotator "NA"]
[PlyCount "92"]
[EventDate "2019.10.02"]
[EventType "team-tourn"]
[EventRounds "7"]
[EventCountry "GER"]
[SourceTitle "playchess.com"]
[Source "ChessBase"]
[SourceQuality "1"]
[WhiteTeam "Rheinland-Pfalz"]
[BlackTeam "Bayern 1"]
[TimeControl "40/5400+30:1800+30"]

1. e4 {[%emt 0:00:00]} e5 {[%emt 0:00:00]} 2. Nf3 {[%emt 0:00:00]} Nc6 {[%emt 0:00:00]} 3. Bb5 {[%emt 0:00:00]} a6 {[%emt 0:00:00]} 4. Ba4 {[%emt 0:00:00]} Nf6 {[%emt 0:00:00]} 5. O-O {[%emt 0:00:00]} b5 {[%emt 0:00:00]} 6. Bb3 {[%emt 0:00:01]} Bc5 {[%emt 0:00:02]} 7. c3 {[%emt 0:00:23]} d6 {[%emt 0:00:06]} 8. d4 {[%emt 0:00:05]} Bb6 {[%emt 0:00:05]} 9. a4 {[%emt 0:00:07]} Rb8 {[%emt 0:00:18]} 10. a5 {[%emt 0:00:18]} Ba7 {[%emt 0:00:11]} 11. h3 {[%emt 0:00:45]} O-O {[%emt 0:00:30]} 12. Be3 {[%emt 0:00:29]} exd4 {[%emt 0:01:13]} 13. cxd4 {[%emt 0:00:31]} Nb4 {[%emt 0:00:12]} 14. Nc3 {[%emt 0:01:30]} Bb7 {[%emt 0:00:31]} 15. Ng5 {[%emt 0:11:43]} Qe8 {[%emt 0:01:54]} 16. e5 {[%emt 0:10:06]} dxe5 {[%emt 0:11:01]} 17. dxe5 {[%emt 0:01:35]} Bxe3 {[%emt 0:00:21]} 18. fxe3 {[%emt 0:01:38]} Qxe5 {[%emt 0:03:08]} 19. Nxf7 {[%emt 0:32:09]} Qxe3+ {[%emt 0:06:48]} 20. Kh2 {[%emt 0:01:28]} Rxf7 {[%emt 0:03:41]} 21. Bxf7+ {[%emt 0:03:38]} Kxf7 {[%emt 0:03:14]} 22. Qb3+ {[%emt 0:08:07]} Nbd5 {[%emt 0:01:28]} 23. Rae1 {[%emt 0:01:32]} Qc5 {[%emt 0:21:20]} 24. Ne4 {[%emt 0:05:18]} Qc4 {[%emt 0:04:07]} 25. Qg3 {[%emt 0:01:57]} Re8 {[%emt 0:14:17]} 26. Ng5+ {[%emt 0:08:34]} Kg8 {[%emt 0:00:22]} 27. Rxe8+ {[%emt 0:02:37]} Nxe8 {[%emt 0:00:06]} 28. Qe5 {[%emt 0:01:24]} Ndf6 {[%emt 0:02:47]} 29. Qe7 {[%emt 0:05:25]} Qd5 {[%emt 0:04:02]} 30. Qe6+ {[%emt 0:02:29]} Qxe6 {[%emt 0:01:26]} 31. Nxe6 {[%emt 0:00:04]} Bc8 {[%emt 0:02:03]} 32. Nc5 {[%emt 0:00:47]} Nd6 {[%emt 0:03:55]} 33. Rd1 {[%emt 0:00:59]} Kf7 {[%emt 0:00:20]} 34. Kg3 {[%emt 0:00:44]} Nfe4+ {[%emt 0:03:27]} 35. Nxe4 {[%emt 0:00:08]} Nxe4+ {[%emt 0:00:04]} 36. Kf4 {[%emt 0:00:45]} Nd6 {[%emt 0:02:40]} 37. Rc1 {[%emt 0:00:22]} Ne8 {[%emt 0:00:07]} 38. Ke5 {[%emt 0:00:38]} Bb7 {[%emt 0:00:15]} 39. g3 {[%emt 0:00:25]} Ke7 {[%emt 0:00:44]} 40. Rc2 {[%emt 0:00:42]} Kd7 {[%emt 0:01:00]} 41. b3 {[%emt 0:03:12]} Nf6 {[%emt 0:03:29]} 42. Rd2+ {[%emt 0:06:28]} Ke7 {[%emt 0:02:15]} 43. Rc2 {[%emt 0:03:14]} c5 {[%emt 0:03:17]} 44. g4 {[%emt 0:04:26]} Nd7+ {[%emt 0:01:31]} 45. Kf5 {[%emt 0:00:54]} Bd5 {[%emt 0:01:23]} 46. Re2+ {[%emt 0:01:38]} Kd6 {[%emt 0:00:12] normal} 0-1

[Event "-chT Youth Countries 2019"]
[Site "Wuerzburg"]
[Date "2019.10.04"]
[Round "4.6"]
[White "Peglau, Charis"]
[Black "Dietz, Kristin"]
[Result "1/2-1/2"]
[ECO "B41"]
[WhiteElo "1827"]
[BlackElo "1948"]
[Annotator "NA"]
[PlyCount "55"]
[EventDate "2019.10.02"]
[EventType "team-tourn"]
[EventRounds "7"]
[EventCountry "GER"]
[SourceTitle "playchess.com"]
[Source "ChessBase"]
[SourceQuality "1"]
[WhiteTeam "Sachsen"]
[BlackTeam "Sachsen-Anhalt"]
[TimeControl "40/5400+30:1800+30"]

1. e4 {[%emt 0:00:00]} c5 {[%emt 0:00:00]} 2. Nf3 {[%emt 0:00:00]} e6 {[%emt 0:00:00]} 3. d4 {[%emt 0:00:00]} cxd4 {[%emt 0:00:00]} 4. Nxd4 {[%emt 0:00:00]} a6 {[%emt 0:00:00]} 5. c4 {[%emt 0:00:09]} Nf6 {[%emt 0:00:13]} 6. Nc3 {[%emt 0:00:12]} Bb4 {[%emt 0:00:18]} 7. f3 {[%emt 0:01:09]} O-O {[%emt 0:08:23]} 8. Be3 {[%emt 0:00:35]} Nc6 {[%emt 0:00:33]} 9. Be2 {[%emt 0:00:22]} d5 {[%emt 0:03:12]} 10. exd5 {[%emt 0:02:07]} exd5 {[%emt 0:00:13]} 11. O-O {[%emt 0:00:27]} Qe7 {[%emt 0:36:53]} 12. Bf2 {[%emt 0:04:18]} Rd8 {[%emt 0:00:32]} 13. cxd5 {[%emt 0:01:34]} Bxc3 {[%emt 0:08:13]} 14. bxc3 {[%emt 0:01:20]} Nxd5 {[%emt 0:00:13]} 15. Nxc6 {[%emt 0:00:42]} bxc6 {[%emt 0:00:07]} 16. Qc2 {[%emt 0:01:45]} Qg5 {[%emt 0:03:51]} 17. Rfd1 {[%emt 0:08:56]} Bh3 {[%emt 0:04:32]} 18. Bf1 {[%emt 0:01:26]} Rd6 {[%emt 0:06:20]} 19. c4 {[%emt 0:01:48]} Rg6 {[%emt 0:00:33]} 20. cxd5 {[%emt 0:03:32]} Bxg2 {[%emt 0:00:11]} 21. Bg3 {[%emt 0:00:12]} Bxf3 {[%emt 0:00:11]} 22. d6 {[%emt 0:07:47]} h5 {[%emt 0:06:28]} 23. Bg2 {[%emt 0:29:46]} Bxg2 {[%emt 0:03:53]} 24. Kxg2 {[%emt 0:02:21]} h4 {[%emt 0:00:23]} 25. Qxc6 {[%emt 0:01:48]} Rf8 {[%emt 0:00:07]} 26. Qf3 {[%emt 0:00:37]} hxg3 {[%emt 0:03:21]} 27. hxg3 {[%emt 0:00:19]} Qe5 {[%emt 0:00:59]} 28. d7 {[%emt 0:01:01] normal} 1/2-1/2